fUST/lending_fUST_20260205
["ID","MTS","AMOUNT","RATE_DAILY","PERIOD"]
[404525047,1770241848785,-780.0,0.000502,30]
[404525048,1770241848800,-750.32,0.00050266,14]
[404525049,1770241848811,-515.55,0.00050566,120]
[404525050,1770241848823,-151.0,0.000506,30]
[404525051,1770241848834,-232.67379889,0.00050821,32]
[404525052,1770241848845,-461.02753643,0.00051,120]
[404525053,1770241848855,-515.55,0.00051164,120]
[404525054,1770241848867,-151.0,0.000512,120]
[404525055,1770241848878,-515.55,0.00051762,120]
[404525056,1770241848889,-500.0,0.00052117,120]
[404525057,1770241848899,-160.0,0.00052234,3]
[404525058,1770241848910,-515.55,0.00052361,120]
[404525059,1770241848921,-151.0,0.000524,27]
[404525060,1770241848933,-500.0,0.0005242,30]
[404525061,1770241848944,-513.24960411,0.0005242,60]
[404525062,1770241848954,-151.0,0.000525,120]
[404525063,1770241848966,-1152.17,0.000525,14]
[404525064,1770241848976,-400.0,0.00052618,31]
[404525065,1770241848988,-515.55,0.00052959,120]
[404525066,1770241848999,-167.0,0.00053,120]
[404525067,1770241849011,-165.0,0.00053,120]
[404525068,1770241849022,-201.0,0.000534,101]
[404525069,1770241849033,-413.63638299,0.00053415,4]
[404525070,1770241849044,-307.89359185,0.00053415,4]
[404525071,1770241849054,-391.68943828,0.00053415,4]
[404525072,1770241849065,-167.25465571,0.00053415,4]
[404525073,1770241849076,-1231.57436739,0.00053415,4]
[404525074,1770241849087,-4908.632674,0.00053425,2]
[404525075,1770241849098,-335.0,0.00053425,30]
[404525076,1770241849109,-335.0,0.00053425,30]
[404525077,1770241849120,-335.0,0.00053425,30]
[404525078,1770241849131,-335.0,0.00053425,30]
[404525079,1770241849141,-335.0,0.00053425,30]
[404525080,1770241849152,-335.0,0.00053425,30]
[404525081,1770241849163,-335.0,0.00053425,30]
[404525082,1770241849173,-335.0,0.00053425,30]
[404525083,1770241849183,-335.0,0.00053425,30]
[404525084,1770241849194,-335.0,0.00053425,30]
[404525085,1770241849205,-335.0,0.00053425,30]
[404525086,1770241849218,-335.0,0.00053425,30]
[404525087,1770241849229,-344.6157725,0.00053425,30]
[404525088,1770241849239,-500.0,0.00053425,120]
[404525089,1770241849250,-500.0,0.00053425,120]
[404525090,1770241849262,-500.0,0.00053425,120]
[404525091,1770241849272,-500.0,0.00053425,120]
[404525092,1770241849283,-500.0,0.00053425,120]
[404525093,1770241849296,-500.0,0.00053425,120]
[404525094,1770241849306,-500.0,0.00053425,120]
[404525095,1770241849317,-500.0,0.00053425,120]
[404525096,1770241849328,-500.0,0.00053425,120]
[404525097,1770241849338,-500.0,0.00053425,120]
[404525098,1770241849349,-500.0,0.00053425,120]
[404525099,1770241849359,-500.0,0.00053425,120]
[404525100,1770241849370,-500.0,0.00053425,120]
[404525101,1770241849381,-500.0,0.00053425,120]
[404525102,1770241849390,-500.0,0.00053425,120]
[404525103,1770241849399,-289.91744389,0.00053425,120]
[404525104,1770241849408,-150.0,0.00053425,120]
[404525105,1770241849418,-152.48675595,0.00053425,120]
[404525106,1770241849427,-150.0,0.00053425,120]
[404525107,1770241849436,-150.0,0.00053425,120]
[404525108,1770241849571,-150.0,0.00053425,120]
[404525109,1770241849583,-150.0,0.00053425,120]
[404525110,1770241849592,-150.0,0.00053425,120]
[404525111,1770241849601,-200.0,0.00053425,120]
[404525112,1770241849610,-254.55135689,0.00053425,120]
[404525113,1770241849619,-250.81623099,0.00053425,120]
[404525114,1770241849628,-500.0,0.00053425,120]
[404525115,1770241849637,-500.0,0.00053425,120]
[404525116,1770241849646,-500.0,0.00053425,120]
[404525117,1770241849655,-150.0,0.00053425,120]
[404525118,1770241849664,-500.0,0.00053425,120]
[404525119,1770241849673,-150.0,0.00053425,120]
[404525120,1770241849682,-200.3613332,0.00053425,120]
[404525121,1770241849691,-150.0,0.00053425,120]
[404525122,1770241849701,-150.0,0.00053425,120]
[404525123,1770241849711,-500.0,0.00053425,120]
[404525124,1770241849721,-150.0,0.00053425,120]
[404525125,1770241849731,-150.0,0.00053425,120]
[404525126,1770241849741,-201.55634591,0.00053425,120]
[404525127,1770241849751,-500.0,0.00053425,120]
[404525128,1770241849760,-150.0,0.00053425,120]
[404525129,1770241849770,-227.0699934,0.00053425,120]
[404525130,1770241849780,-175.03119549,0.00053425,120]
[404525131,1770241849790,-500.0,0.00053425,120]
[404525132,1770241849800,-500.0,0.00053425,120]
[404525133,1770241849810,-602.17985327,0.00053425,120]
[404525134,1770241849819,-500.0,0.00053425,120]
[404525135,1770241849829,-500.0,0.00053425,120]
[404525136,1770241849838,-500.0,0.00053425,120]
[404525137,1770241849848,-500.0,0.00053425,120]
[404525138,1770241849857,-500.0,0.00053425,120]
[404525139,1770241849867,-500.0,0.00053425,120]
[404525140,1770241849877,-500.0,0.00053425,120]
[404525141,1770241849886,-500.0,0.00053425,120]
[404525142,1770241849895,-500.0,0.00053425,120]
[404525143,1770241849904,-354.36921488,0.00053425,120]
[404525144,1770241849914,-500.0,0.00053425,120]
[404525145,1770241849923,-500.0,0.00053425,120]
[404525146,1770241849933,-500.0,0.00053425,120]
[404525147,1770241849942,-500.0,0.00053425,120]
[404525148,1770241849951,-500.0,0.00053425,120]
[404525149,1770241849960,-210.13200648,0.00053425,120]
[404525150,1770241849970,-944.24523005,0.00053425,120]
[404525151,1770241849979,-711.0,0.0005354,31]
[404525152,1770241849989,-710.0,0.00053606,31]
[404525153,1770241849998,-711.0,0.0005369,31]
[404525154,1770241850008,-165.0,0.00053699,120]
[404525155,1770241850017,-151.0,0.000537,120]
[404525156,1770241850027,-200.0,0.00053901,120]
[404525157,1770241850037,-160.0,0.0005404,4]
[404525158,1770241850047,-200.0,0.00054161,120]
[404525159,1770241850056,-151.0,0.000542,30]
[404525160,1770241850066,-1152.17,0.000542,14]
[404525161,1770241850075,-764.0,0.00054244,31]
[404525162,1770241850084,-278.32799109,0.00054506,30]
[404525163,1770241850094,-19697.76030204,0.00054509,2]
[404525164,1770241850103,-305.9668812,0.00054627,30]
[404525165,1770241850114,-305.9668812,0.00054627,30]
[404525166,1770241850123,-305.5132374,0.00054627,30]
[404525167,1770241850133,-305.9668812,0.00054627,30]
[404525168,1770241850142,-305.9668812,0.00054627,30]
[404525169,1770241850152,-325.074123,0.00054702,60]
[404525170,1770241850163,-300.0,0.00054794,2]
[404525171,1770241850182,-290.25718007,0.00054794,2]
[404525172,1770241850195,-300.0,0.00054794,2]
[404525173,1770241850205,-300.0,0.00054794,2]
[404525174,1770241850218,-409.86839398,0.00054794,120]
[404525175,1770241850230,-500.0,0.00054794,120]
[404525176,1770241850240,-500.0,0.00054794,120]
[404525177,1770241850251,-198.07198566,0.00054794,120]
[404525178,1770241850261,-500.0,0.00054794,120]
[404525179,1770241850271,-856.59441285,0.00054794,2]
[404525180,1770241850280,-502.24157408,0.00054794,120]
[404525181,1770241850292,-4845.77,0.00054794,120]
[404525182,1770241850302,-208.76643391,0.00054794,120]
[404525183,1770241850313,-514.90337658,0.00054794,120]
[404525184,1770241850329,-500.0,0.00054794,120]
[404525185,1770241850339,-500.0,0.00054794,120]
[404525186,1770241850348,-589.64957646,0.00054794,120]
[404525187,1770241850358,-500.0,0.00054794,120]
[404525188,1770241850368,-500.0,0.00054794,120]
[404525189,1770241850377,-500.0,0.00054794,120]
[404525190,1770241850387,-500.0,0.00054794,120]
[404525191,1770241850398,-500.0,0.00054794,120]
[404525192,1770241850408,-500.0,0.00054794,120]
[404525193,1770241850418,-2086.43,0.00054794,2]
[404525194,1770241850428,-500.0,0.00054794,120]
[404525195,1770241850438,-500.0,0.00054794,120]
[404525196,1770241850447,-500.0,0.00054794,120]
[404525197,1770241850457,-500.0,0.00054794,120]
[404525198,1770241850466,-1000.0,0.00054794,2]
[404525199,1770241850476,-500.0,0.00054794,120]
[404525200,1770241850486,-200.0,0.00054794,120]
[404525201,1770241850495,-197.14385872,0.00054794,120]
[404525202,1770241850506,-500.0,0.00054794,120]
[404525203,1770241850515,-547.20771406,0.00054794,120]
[404525204,1770241850525,-525.10132764,0.00054794,120]
[404525205,1770241850535,-183.50979953,0.00054794,120]
[404525206,1770241850546,-506.90943126,0.00054794,120]
[404525207,1770241850556,-411.15718454,0.00054794,120]
[404525208,1770241850565,-529.80948442,0.00054794,120]
[404525209,1770241850575,-500.0,0.00054794,120]
[404525210,1770241850584,-503.94637396,0.00054794,120]
[404525211,1770241850594,-509.09516317,0.00054794,120]
[404525212,1770241850604,-530.17397567,0.00054794,120]
[404525213,1770241850614,-500.0,0.00054794,120]
[404525214,1770241850623,-531.34016475,0.00054794,120]
[404525215,1770241850634,-500.0,0.00054794,120]
[404525216,1770241850643,-518.49523096,0.00054794,120]
[404525217,1770241850653,-500.0,0.00054794,120]
[404525218,1770241850663,-505.20618862,0.00054794,120]
[404525219,1770241850672,-500.0,0.00054794,120]
[404525220,1770241850686,-500.0,0.00054794,60]
[404525221,1770241850696,-500.0,0.00054794,120]
[404525222,1770241850705,-201.35339672,0.00054794,120]
[404525223,1770241850715,-500.0,0.00054794,120]
[404525224,1770241850725,-550.0,0.00054794,30]
[404525225,1770241850735,-513.23266868,0.00054794,120]
[404525226,1770241850746,-500.0,0.00054794,120]
[404525227,1770241850757,-500.0,0.00054794,120]
[404525228,1770241850768,-516.38215267,0.00054794,120]
[404525229,1770241850778,-534.88000593,0.00054794,120]
[404525230,1770241850788,-500.0,0.00054794,120]
[404525231,1770241850799,-530.71838792,0.00054794,120]
[404525232,1770241850809,-500.0,0.00054794,120]
[404525233,1770241850819,-515.44987918,0.00054794,120]
[404525234,1770241850830,-552.073175,0.00054794,120]
[404525235,1770241850839,-599.22260232,0.00054794,120]
[404525236,1770241850849,-505.81682944,0.00054794,120]
[404525237,1770241850859,-500.0,0.00054794,120]
[404525238,1770241850870,-512.75722107,0.00054794,120]
[404525239,1770241850880,-500.0,0.00054794,120]
[404525240,1770241850890,-500.0,0.00054794,120]
[404525241,1770241850900,-510.7519942,0.00054794,120]
[404525242,1770241850911,-500.0,0.00054794,120]
[404525243,1770241850921,-500.0,0.00054794,2]
[404525244,1770241850932,-165.82222183,0.00054794,120]
[404525245,1770241850942,-500.0,0.00054794,55]
[404525246,1770241850951,-510.66724325,0.00054794,120]
[404525247,1770241850961,-500.0,0.00054794,120]
[404525248,1770241850971,-500.0,0.00054794,120]
[404525249,1770241850981,-500.0,0.00054794,120]
[404525250,1770241850991,-506.47254762,0.00054794,120]
[404525251,1770241851001,-500.0,0.00054794,120]
[404525252,1770241851011,-500.0,0.00054794,120]
[404525253,1770241851021,-580.16166446,0.00054794,120]
[404525254,1770241851030,-477.76247981,0.00054794,120]
[404525255,1770241851040,-500.0,0.00054794,120]
[404525256,1770241851051,-526.65932347,0.00054794,120]
[404525257,1770241851060,-511.61848283,0.00054794,120]
[404525258,1770241851071,-500.0,0.00054794,120]
[404525259,1770241851081,-500.0,0.00054794,120]
[404525260,1770241851091,-500.0,0.00054794,120]
[404525261,1770241851100,-500.0,0.00054794,120]
[404525262,1770241851110,-176.55482879,0.00054794,120]
[404525263,1770241851120,-468.06439785,0.00054794,120]
[404525264,1770241851129,-500.0,0.00054794,120]
[404525265,1770241851140,-500.0,0.00054794,120]
[404525266,1770241851152,-1000.0,0.00054794,120]
[404525267,1770241851163,-500.0,0.00054794,120]
[404525268,1770241851173,-500.0,0.00054794,120]
[404525269,1770241851187,-512.65785153,0.00054794,120]
[404525270,1770241851198,-500.0,0.00054794,120]
[404525271,1770241851208,-500.0,0.00054794,120]
[404525272,1770241851220,-500.0,0.00054794,120]
[404525273,1770241851229,-362.82760583,0.00054794,120]
[404525274,1770241851240,-473.26062302,0.00054794,120]
[404525275,1770241851249,-570.58715301,0.00054794,120]
[404525276,1770241851261,-500.0,0.00054794,120]
[404525277,1770241851270,-833.33,0.00054794,120]
[404525278,1770241851280,-500.0,0.00054794,120]
[404525279,1770241851291,-549.5381887,0.00054794,120]
[404525280,1770241851300,-500.0,0.00054794,2]
[404525281,1770241851312,-500.0,0.00054794,120]
[404525282,1770241851324,-500.0,0.00054794,120]
[404525283,1770241851333,-618.07708837,0.00054794,120]
[404525284,1770241851342,-500.0,0.00054794,120]
[404525285,1770241851352,-500.0,0.00054794,120]
[404525286,1770241851361,-511.75361726,0.00054794,120]
[404525287,1770241851370,-537.92356739,0.00054794,120]
[404525288,1770241851379,-500.0,0.00054794,120]
[404525289,1770241851388,-507.19055344,0.00054794,120]
[404525290,1770241851397,-605.63820071,0.00054794,120]
[404525291,1770241851406,-514.76124427,0.00054794,120]
[404525292,1770241851415,-331.52747673,0.00054794,120]
[404525293,1770241851425,-500.0,0.00054794,120]
[404525294,1770241851434,-150.0,0.00054794,120]
[404525295,1770241851443,-500.0,0.00054794,120]
[404525296,1770241851453,-500.0,0.00054794,120]
[404525297,1770241851466,-500.0,0.00054794,120]
[404525298,1770241851476,-546.76568986,0.00054794,120]
[404525299,1770241851485,-511.67864257,0.00054794,120]
[404525300,1770241851495,-518.00006135,0.00054794,120]
[404525301,1770241851504,-519.03159421,0.00054794,120]
[404525302,1770241851514,-531.31918286,0.00054794,120]
[404525303,1770241851524,-535.53084385,0.00054794,120]
[404525304,1770241851536,-595.33953774,0.00054794,120]
[404525305,1770241851545,-511.2979284,0.00054794,120]
[404525306,1770241851555,-517.13733243,0.00054794,120]
[404525307,1770241851565,-500.0,0.00054794,120]
[404525308,1770241851575,-500.0,0.00054794,120]
[404525309,1770241851584,-500.0,0.00054794,120]
[404525310,1770241851594,-531.99090921,0.00054794,120]
[404525311,1770241851604,-312.94389336,0.00054794,120]
[404525312,1770241851613,-519.1899973,0.00054794,120]
[404525313,1770241851622,-599.81210066,0.00054794,120]
[404525314,1770241851632,-640.35632712,0.00054794,120]
[404525315,1770241851642,-558.63789552,0.00054794,120]
[404525316,1770241851651,-500.0,0.00054794,120]
[404525317,1770241851662,-500.0,0.00054794,120]
[404525318,1770241851672,-462.51684028,0.00054794,120]
[404525319,1770241851682,-500.0,0.00054794,31]
[404525320,1770241851693,-500.0,0.00054794,120]
[404525321,1770241851703,-530.33496509,0.00054794,120]
[404525322,1770241851713,-500.0,0.00054794,30]
[404525323,1770241851723,-600.72960134,0.00054794,120]
[404525324,1770241851732,-557.04736182,0.00054794,120]
[404525325,1770241851742,-984.89,0.00054794,120]
[404525326,1770241851751,-539.77300585,0.00054794,120]
[404525327,1770241851760,-512.06156893,0.00054794,120]
[404525328,1770241851770,-497.5392104,0.00054794,120]
[404525329,1770241851779,-500.0,0.00054794,120]
[404525330,1770241851788,-500.0,0.00054794,120]
[404525331,1770241851798,-667.49,0.00054794,120]
[404525332,1770241851807,-517.34250249,0.00054794,120]
[404525333,1770241851817,-639.71473781,0.00054794,120]
[404525334,1770241851826,-531.8645273,0.00054794,120]
[404525335,1770241851836,-500.0,0.00054794,120]
[404525336,1770241851845,-895.9,0.00054794,120]
[404525337,1770241851855,-493.84669874,0.00054794,120]
[404525338,1770241851865,-404.55165375,0.00054794,120]
[404525339,1770241851875,-160.6491432,0.00054794,120]
[404525340,1770241851884,-2662.38,0.00054794,120]
[404525341,1770241851894,-588.33514309,0.00054794,120]
[404525342,1770241851903,-512.41392386,0.00054794,120]
[404525343,1770241851912,-500.0,0.00054794,120]
[404525344,1770241851922,-500.0,0.00054794,120]
[404525345,1770241851931,-515.931467,0.00054794,120]
[404525346,1770241851940,-644.48395965,0.00054794,120]
[404525347,1770241851950,-518.94235693,0.00054794,120]
[404525348,1770241851960,-500.0,0.00054794,2]
[404525349,1770241851969,-193.05153406,0.00054794,120]
[404525350,1770241851979,-582.6084832,0.00054794,120]
[404525351,1770241851989,-513.12596332,0.00054794,120]
[404525352,1770241851999,-500.0,0.00054794,120]
[404525353,1770241852009,-500.0,0.00054794,120]
[404525354,1770241852018,-560.8798813,0.00054794,120]
[404525355,1770241852027,-248.69157869,0.00054794,120]
[404525356,1770241852037,-500.0,0.00054794,120]
[404525357,1770241852047,-500.0,0.00054794,120]
[404525358,1770241852056,-525.72620591,0.00054794,120]
[404525359,1770241852065,-568.10715359,0.00054794,120]
[404525360,1770241852074,-500.0,0.00054794,120]
[404525361,1770241852085,-642.23062363,0.00054794,120]
[404525362,1770241852095,-556.01694621,0.00054794,120]
[404525363,1770241852105,-269.10681494,0.00054794,120]
[404525364,1770241852114,-492.18046689,0.00054794,120]
[404525365,1770241852124,-614.97820273,0.00054794,120]
[404525366,1770241852133,-565.78609364,0.00054794,120]
[404525367,1770241852142,-563.42915637,0.00054794,120]
[404525368,1770241852151,-500.0,0.00054794,120]
[404525369,1770241852160,-520.96487124,0.00054794,120]
[404525370,1770241852170,-517.66498143,0.00054794,120]
[404525371,1770241852179,-640.87617097,0.00054794,120]
[404525372,1770241852188,-626.56,0.00054794,120]
[404525373,1770241852197,-522.58860281,0.00054794,120]
[404525374,1770241852215,-565.76591911,0.00054794,120]
[404525375,1770241852230,-500.0,0.00054794,120]
[404525376,1770241852240,-911.8,0.00054794,120]
[404525377,1770241852249,-545.01394497,0.00054794,120]
[404525378,1770241852259,-524.25768067,0.00054794,120]
[404525379,1770241852268,-603.56863107,0.00054794,120]
[404525380,1770241852278,-519.38719013,0.00054794,120]
[404525381,1770241852287,-581.12420935,0.00054794,120]
[404525382,1770241852299,-599.58435241,0.00054794,120]
[404525383,1770241852308,-500.0,0.00054794,120]
[404525384,1770241852318,-500.0,0.00054794,120]
[404525385,1770241852462,-644.81213121,0.00054794,120]
[404525386,1770241852473,-500.0,0.00054794,120]
[404525387,1770241852482,-414.56115828,0.00054794,120]
[404525388,1770241852491,-517.26561787,0.00054794,120]
[404525389,1770241852500,-570.25469329,0.00054794,120]
[404525390,1770241852509,-584.20672397,0.00054794,120]
[404525391,1770241852518,-500.0,0.00054794,120]
[404525392,1770241852527,-500.0,0.00054794,120]
[404525393,1770241852536,-598.48799706,0.00054794,120]
[404525394,1770241852546,-500.0,0.00054794,120]
[404525395,1770241852556,-500.0,0.00054794,120]
[404525396,1770241852565,-516.75487493,0.00054794,120]
[404525397,1770241852574,-6872.09,0.00054794,2]
[404525398,1770241852584,-573.45322226,0.00054794,120]
[404525399,1770241852593,-500.0,0.00054794,120]
[404525400,1770241852602,-561.092703,0.00054794,120]
[404525401,1770241852611,-500.0,0.00054794,120]
[404525402,1770241852621,-500.0,0.00054794,120]
[404525403,1770241852630,-558.51240837,0.00054794,120]
[404525404,1770241852639,-542.5181274,0.00054794,120]
[404525405,1770241852649,-512.6087305,0.00054794,120]
[404525406,1770241852659,-518.42158193,0.00054794,120]
[404525407,1770241852669,-535.29551691,0.00054794,120]
[404525408,1770241852678,-500.0,0.00054794,120]
[404525409,1770241852688,-1000.0,0.00054794,2]
[404525410,1770241852698,-229.85718734,0.00054794,120]
[404525411,1770241852707,-500.0,0.00054794,120]
[404525412,1770241852717,-178.62013119,0.00054794,120]
[404525413,1770241852727,-2462.87,0.00054794,10]
[404525414,1770241852737,-500.0,0.00054794,120]
[404525415,1770241852746,-537.17966352,0.00054794,120]
[404525416,1770241852758,-515.42691379,0.00054794,120]
[404525417,1770241852768,-504.90032167,0.00054794,120]
[404525418,1770241852777,-446.29491241,0.00054794,120]
[404525419,1770241852787,-500.0,0.00054794,120]
[404525420,1770241852797,-553.71199073,0.00054794,120]
[404525421,1770241852806,-499.69287825,0.00054794,120]
[404525422,1770241852817,-500.0,0.00054794,120]
[404525423,1770241852827,-647.93644539,0.00054794,120]
[404525424,1770241852842,-158.95062722,0.00054794,120]
[404525425,1770241852853,-1000.0,0.00054794,120]
[404525426,1770241852863,-367.12829343,0.00054794,120]
[404525427,1770241852872,-539.08945418,0.00054794,120]
[404525428,1770241852882,-639.64714639,0.00054794,120]
[404525429,1770241852892,-500.0,0.00054794,120]
[404525430,1770241852902,-500.0,0.00054794,120]
[404525431,1770241852911,-500.0,0.00054794,120]
[404525432,1770241852920,-410.63517227,0.00054794,120]
[404525433,1770241852931,-500.0,0.00054794,120]
[404525434,1770241852941,-500.0,0.00054794,120]
[404525435,1770241852951,-500.0,0.00054794,120]
[404525436,1770241852960,-500.0,0.00054794,120]
[404525437,1770241852971,-500.0,0.00054794,120]
[404525438,1770241852981,-357.51779281,0.00054794,120]
[404525439,1770241853073,-142.48220719,0.00054794,120]
[404525440,1770241853082,-500.0,0.00054794,120]
[404525441,1770241853091,-500.0,0.00054794,120]
[404525442,1770241853101,-500.0,0.00054794,120]
[404525443,1770241853111,-500.0,0.00054794,120]
[404525444,1770241853120,-500.0,0.00054794,120]
[404525445,1770241853130,-500.0,0.00054794,120]
[404525446,1770241853140,-500.0,0.00054794,120]
[404525447,1770241853149,-500.0,0.00054794,120]
[404525448,1770241853159,-500.0,0.00054794,120]
[404525449,1770241853168,-500.0,0.00054794,120]
[404525450,1770241853178,-500.0,0.00054794,120]
[404525451,1770241853187,-500.0,0.00054794,120]
[404525452,1770241853196,-500.0,0.00054794,120]
[404525453,1770241853206,-500.0,0.00054794,120]
[404525454,1770241853216,-500.0,0.00054794,120]
[404525455,1770241853229,-500.0,0.00054794,120]
[404525456,1770241853239,-500.0,0.00054794,120]
[404525457,1770241853248,-315.11436471,0.00054794,120]
[404525458,1770241853258,-500.0,0.00054794,120]
[404525459,1770241853269,-720.68,0.00054794,120]
[404525460,1770241853279,-500.0,0.00054794,120]
[404525461,1770241853288,-432.12486899,0.00054794,120]
[404525462,1770241853299,-164.58621871,0.00054794,120]
[404525463,1770241853308,-500.0,0.00054794,120]
[404525464,1770241853318,-585.76133149,0.00054794,120]
[404525465,1770241853328,-500.0,0.00054794,120]
[404525466,1770241853338,-500.0,0.00054794,120]
[404525467,1770241853348,-2061.64,0.00054794,21]
[404525468,1770241853357,-525.90780547,0.00054794,120]
[404525469,1770241853366,-540.43232345,0.00054794,120]
[404525470,1770241853376,-1993.29,0.00054794,120]
[404525471,1770241853385,-647.72055956,0.00054794,120]
[404525472,1770241853394,-967.12,0.00054794,120]
[404525473,1770241853403,-818.11,0.00054794,120]
[404525474,1770241853413,-4299.25,0.00054794,90]
[404525475,1770241853423,-500.0,0.00054794,7]
[404525476,1770241853432,-500.0,0.00054794,120]
[404525477,1770241853441,-363.29119794,0.00054794,120]
[404525478,1770241853451,-619.96427212,0.00054794,120]
[404525479,1770241853460,-500.0,0.00054794,120]
[404525480,1770241853469,-500.0,0.00054794,120]
[404525481,1770241853478,-540.61903627,0.00054794,120]
[404525482,1770241853489,-500.0,0.00054794,120]
[404525483,1770241853498,-620.09866362,0.00054794,120]
[404525484,1770241853508,-185.98786279,0.00054794,120]
[404525485,1770241853518,-452.56413557,0.00054794,120]
[404525486,1770241853528,-500.0,0.00054794,120]
[404525487,1770241853537,-162.41409442,0.00054794,120]
[404525488,1770241853547,-999.0,0.00054794,120]
[404525489,1770241853556,-545.58288384,0.00054794,120]
[404525490,1770241853566,-275.81997197,0.00054794,120]
[404525491,1770241853576,-925.9,0.00054794,120]
[404525492,1770241853586,-160.03600964,0.00054794,120]
[404525493,1770241853595,-1320.27,0.00054794,120]
[404525494,1770241853604,-604.19,0.00054794,120]
[404525495,1770241853614,-505.26252234,0.00054794,120]
[404525496,1770241853623,-582.39,0.00054794,120]
[404525497,1770241853632,-150.43130423,0.00054794,120]
[404525498,1770241853642,-500.0,0.00054794,120]
[404525499,1770241853653,-179.89586092,0.00054794,120]
[404525500,1770241853663,-599.61946645,0.00054794,120]
[404525501,1770241853672,-500.0,0.00054794,120]
[404525502,1770241853681,-500.0,0.00054794,120]
[404525503,1770241853690,-554.20898101,0.00054794,120]
[404525504,1770241853700,-425.70049572,0.00054794,120]
[404525505,1770241853709,-564.12891296,0.00054794,120]
[404525506,1770241853718,-500.0,0.00054794,120]
[404525507,1770241853728,-595.68,0.00054794,120]
[404525508,1770241853738,-500.0,0.00054794,120]
[404525509,1770241853747,-500.0,0.00054794,120]
[404525510,1770241853757,-355.03421094,0.00054794,120]
[404525511,1770241853767,-500.0,0.00054794,120]
[404525512,1770241853776,-217.05468918,0.00054794,120]
[404525513,1770241853786,-528.57449144,0.00054794,120]
[404525514,1770241853797,-166.59438354,0.00054794,120]
[404525515,1770241853807,-500.0,0.00054794,120]
[404525516,1770241853818,-500.0,0.00054794,120]
[404525517,1770241853828,-806.37,0.00054794,120]
[404525518,1770241853837,-500.0,0.00054794,120]
[404525519,1770241853847,-313.79071787,0.00054794,120]
[404525520,1770241853864,-186.20928213,0.00054794,120]
[404525521,1770241853874,-500.0,0.00054794,120]
[404525522,1770241853884,-302.34774072,0.00054794,120]
[404525523,1770241853894,-991.4,0.00054794,120]
[404525524,1770241853904,-761.3,0.00054794,120]
[404525525,1770241853914,-551.24098873,0.00054794,120]
[404525526,1770241853924,-648.56600822,0.00054794,120]
[404525527,1770241853934,-151.0,0.00054795,120]
[404525528,1770241853945,-151.0,0.00054795,120]
[404525529,1770241853955,-151.0,0.00054795,120]
[404525530,1770241853966,-151.0,0.00054795,120]
[404525531,1770241853976,-151.0,0.00054795,120]
[404525532,1770241853986,-151.0,0.00054795,120]
[404525533,1770241853997,-151.0,0.00054795,120]
[404525534,1770241854008,-151.0,0.00054795,120]
[404525535,1770241854018,-151.0,0.00054795,120]
[404525536,1770241854029,-151.0,0.00054795,120]
[404525537,1770241854039,-151.0,0.00054795,120]
[404525538,1770241854051,-151.0,0.00054795,120]
[404525539,1770241854062,-203.813677,0.00054795,120]
[404525540,1770241854072,-196.564446,0.00054795,120]
[404525541,1770241854082,-196.564446,0.00054795,120]
[404525542,1770241854092,-196.564446,0.00054795,120]
[404525543,1770241854102,-196.564446,0.00054795,120]
[404525544,1770241854112,-196.564446,0.00054795,120]
[404525545,1770241854122,-196.564446,0.00054795,120]
[404525546,1770241854132,-196.564446,0.00054795,120]